[Event "Magnus Carlsen Invitational 2021"]
[Site "Online"]
[Date "2021.03.10"]
[Round "8.1"]
[White "Giri, Anish"]
[Black "Grandelius, Nils"]
[Result "1/2-1/2"]
[ECO "B90"]
[WhiteElo "2731"]
[BlackElo "2632"]
[Annotator "RC"]
[PlyCount "91"]
[EventDate "2021.03.13"]
[EventType "tourn"]
[EventCountry "NET"]
[SourceTitle "playchess.com"]
[Source "ChessBase"]
[SourceQuality "1"]
[TimeControl "900+10"]

1. Nf3 {[%emt 0:00:00]} c5 {[%emt 0:00:00]} 2. e4 {[%emt 0:00:00]} d6 {[%emt 0:00:00]} 3. d4 {[%emt 0:00:00]} cxd4 {[%emt 0:00:00]} 4. Nxd4 {[%emt 0:00:00]} Nf6 {[%emt 0:00:00]} 5. Nc3 {[%emt 0:00:00]} a6 {[%emt 0:00:00]} 6. a4 {[%emt 0:00:00]} g6 {[%emt 0:00:09]} 7. Be2 {[%emt 0:00:13]} Bg7 {[%emt 0:00:03]} 8. O-O {[%emt 0:00:02]} O-O {[%emt 0:00:01]} 9. Be3 {[%emt 0:00:01]} Nc6 {[%emt 0:00:15]} 10. Qd2 {[%emt 0:00:02]} Rb8 {[%emt 0:00:23]} 11. Rfb1 {[%emt 0:01:09]} Ng4 {[%emt 0:01:01]} 12. Bxg4 {[%emt 0:00:07]} Bxg4 {[%emt 0:00:00]} 13. Nd5 {[%emt 0:00:07]} Bd7 {[%emt 0:03:06]} 14. a5 {[%emt 0:00:50]} Ne5 {[%emt 0:01:38]} 15. Bg5 {[%emt 0:01:42]} Re8 {[%emt 0:01:51]} 16. b3 {[%emt 0:01:23]} Ng4 {[%emt 0:02:33]} 17. Re1 {[%emt 0:01:04]} h6 {[%emt 0:00:41]} 18. Bh4 {[%emt 0:00:03]} Bc6 {[%emt 0:03:30]} 19. h3 {[%emt 0:01:11]} Nf6 {[%emt 0:00:07]} 20. c4 {[%emt 0:04:01]} Nh5 {[%emt 0:00:05]} 21. f3 {[%emt 0:01:14]} g5 {[%emt 0:00:07]} 22. Bf2 {[%emt 0:00:10]} e6 {[%emt 0:00:05]} 23. Nb6 {[%emt 0:00:26]} Be5 {[%emt 0:00:58]} 24. Rad1 {[%emt 0:00:03]} Qe7 {[%emt 0:01:01]} 25. Ne2 {[%emt 0:00:33]} Red8 {[%emt 0:00:36]} 26. Bd4 {[%emt 0:00:02]} Nf4 {[%emt 0:00:06]} 27. b4 {[%emt 0:01:37]} Kh7 {[%emt 0:00:09]} 28. Qb2 {[%emt 0:00:56]} Qf6 {[%emt 0:00:22]} 29. Nxf4 {[%emt 0:00:11]} gxf4 {[%emt 0:00:23]} 30. Bxe5 {[%emt 0:00:18]} dxe5 {[%emt 0:00:10]} 31. b5 {[%emt 0:00:02]} Be8 {[%emt 0:00:03]} 32. bxa6 {[%emt 0:00:13]} bxa6 {[%emt 0:00:02]} 33. c5 {[%emt 0:00:12]} Bb5 {[%emt 0:00:11]} 34. Qc2 {[%emt 0:00:03]} Rxd1 {[%emt 0:00:26]} 35. Rxd1 {[%emt 0:00:02]} Rd8 {[%emt 0:00:02]} 36. Rd6 {[%emt 0:00:15]} Qh4 {[%emt 0:00:16]} 37. Qf2 {[%emt 0:00:36]} Qf6 {[%emt 0:00:38]} 38. Qd2 {[%emt 0:01:00]} Rg8 {[%emt 0:00:02]} 39. c6 {[%emt 0:00:06]} Qe7 {[%emt 0:00:03]} 40. Nd7 {[%emt 0:00:19]} Qg5 {[%emt 0:00:26]} 41. Qb2 {[%emt 0:01:07]} Qh4 {[%emt 0:00:08]} 42. Qf2 {[%emt 0:00:07]} Qe7 {[%emt 0:00:05]} 43. Qd2 {[%emt 0:00:06]} Qg5 {[%emt 0:00:11]} 44. Qb2 {[%emt 0:00:32]} Qh4 {[%emt 0:00:01]} 45. Qf2 {[%emt 0:00:01]} Qe7 {[%emt 0:00:01]} 46. Qd2 {[%emt 0:00:05]} 1/2-1/2

[Event "Magnus Carlsen Invitational 2021"]
[Site "Online"]
[Date "2021.03.10"]
[Round "8.4"]
[White "Karjakin, Sergey"]
[Black "Firouzja, Alireza"]
[Result "1-0"]
[ECO "B12"]
[WhiteElo "2709"]
[BlackElo "2703"]
[Annotator "ChessBase"]
[PlyCount "113"]
[EventDate "2021.03.13"]
[EventType "tourn"]
[EventCountry "NET"]
[SourceTitle "playchess.com"]
[Source "ChessBase"]
[SourceQuality "1"]
[TimeControl "900+10"]

1. e4 {[%emt 0:00:00]} c6 {[%emt 0:00:00]} 2. d4 {[%emt 0:00:00]} d5 {[%emt 0:00:00]} 3. e5 {[%emt 0:00:00]} Bf5 {[%emt 0:00:00]} 4. Nf3 {[%emt 0:00:00]} e6 {[%emt 0:00:00]} 5. Be2 {[%emt 0:00:00]} Ne7 {[%emt 0:00:00]} 6. c3 {[%emt 0:00:00]} h6 {[%emt 0:00:06]} 7. O-O {[%emt 0:00:00]} Nd7 {[%emt 0:00:04]} 8. Nbd2 {[%emt 0:00:01]} a5 {[%emt 0:00:05]} 9. a4 {[%emt 0:00:07]} Bh7 {[%emt 0:01:05]} 10. Nb3 {[%emt 0:00:17]} Qb6 {[%emt 0:00:48]} 11. Ne1 {[%emt 0:00:15]} Nf5 {[%emt 0:01:18]} 12. Nd3 {[%emt 0:00:35]} Be7 {[%emt 0:00:17]} 13. Re1 {[%emt 0:00:33]} g5 {[%emt 0:01:42]} 14. Bh5 {[%emt 0:01:05]} Ng7 {[%emt 0:00:17]} 15. Be2 {[%emt 0:00:03]} h5 {[%emt 0:01:41]} 16. Ndc5 {[%emt 0:01:16]} g4 {[%emt 0:02:03]} 17. Nxd7 {[%emt 0:00:52]} Kxd7 {[%emt 0:00:00]} 18. Nc5+ {[%emt 0:00:32]} Bxc5 {[%emt 0:01:11]} 19. dxc5 {[%emt 0:00:00]} Qxc5 {[%emt 0:00:00]} 20. Qb3 {[%emt 0:00:08]} Rhb8 {[%emt 0:00:17]} 21. Be3 {[%emt 0:00:40]} Qe7 {[%emt 0:00:01]} 22. Rad1 {[%emt 0:01:16]} b6 {[%emt 0:01:33]} 23. f3 {[%emt 0:01:49]} gxf3 {[%emt 0:01:24]} 24. Bxf3 {[%emt 0:00:00]} Kc7 {[%emt 0:00:02]} 25. Bf2 {[%emt 0:00:24]} Bg6 {[%emt 0:00:26]} 26. c4 {[%emt 0:01:11]} Qb4 {[%emt 0:00:18]} 27. Qa2 {[%emt 0:00:11]} Qxc4 {[%emt 0:02:27]} 28. Qxc4 {[%emt 0:00:17]} dxc4 {[%emt 0:00:00]} 29. Rd6 {[%emt 0:00:02]} c5 {[%emt 0:00:02]} 30. Rc6+ {[%emt 0:00:15]} Kd7 {[%emt 0:00:57]} 31. Rd6+ {[%emt 0:00:04]} Kc7 {[%emt 0:00:05]} 32. Red1 {[%emt 0:00:47]} Bd3 {[%emt 0:00:04]} 33. b3 {[%emt 0:00:04]} Rd8 {[%emt 0:01:31]} 34. Bxa8 {[%emt 0:00:38]} Rxa8 {[%emt 0:00:04]} 35. bxc4 {[%emt 0:00:01]} Bxc4 {[%emt 0:00:10]} 36. Rd7+ {[%emt 0:00:03]} Kc8 {[%emt 0:00:01]} 37. Rd8+ {[%emt 0:01:26]} Kb7 {[%emt 0:00:01]} 38. R1d7+ {[%emt 0:00:03]} Kc6 {[%emt 0:00:01]} 39. Rd6+ {[%emt 0:00:02]} Kb7 {[%emt 0:00:01]} 40. Rxa8 {[%emt 0:00:11]} Kxa8 {[%emt 0:00:00]} 41. Rxb6 {[%emt 0:00:01]} Nf5 {[%emt 0:00:04]} 42. Bxc5 {[%emt 0:00:02]} Nh4 {[%emt 0:00:07]} 43. Bd4 {[%emt 0:00:33]} Bd3 {[%emt 0:00:12]} 44. Rb3 {[%emt 0:00:46]} Be4 {[%emt 0:00:08]} 45. Rh3 {[%emt 0:00:03]} Nxg2 {[%emt 0:00:32]} 46. Rxh5 {[%emt 0:00:02]} Kb7 {[%emt 0:00:00]} 47. Kf2 {[%emt 0:00:42]} Kc6 {[%emt 0:00:24]} 48. Bc3 {[%emt 0:00:39]} Kd5 {[%emt 0:00:34]} 49. Bd2 {[%emt 0:00:39]} Kd4 {[%emt 0:00:18]} 50. h4 {[%emt 0:00:14]} Kd3 {[%emt 0:00:07]} 51. Bg5 {[%emt 0:00:06]} Kd4 {[%emt 0:00:02]} 52. Rh8 {[%emt 0:00:39]} Kxe5 {[%emt 0:00:03]} 53. h5 {[%emt 0:00:01]} Kf5 {[%emt 0:00:13]} 54. Rg8 {[%emt 0:00:09]} f6 {[%emt 0:00:15]} 55. h6 {[%emt 0:00:14]} Ke5 {[%emt 0:00:00]} 56. Bc1 {[%emt 0:00:27]} Nh4 {[%emt 0:00:15]} 57. h7 {[%emt 0:00:25]} 1-0

[Event "Magnus Carlsen Invitational 2021"]
[Site "Online"]
[Date "2021.03.10"]
[Round "10.3"]
[White "Karjakin, Sergey"]
[Black "Anton Guijarro, David"]
[Result "1-0"]
[ECO "A47"]
[WhiteElo "2709"]
[BlackElo "2674"]
[Annotator "RC"]
[PlyCount "137"]
[EventDate "2021.03.13"]
[EventType "tourn"]
[EventCountry "NET"]
[SourceTitle "playchess.com"]
[Source "ChessBase"]
[SourceQuality "1"]
[TimeControl "900+10"]

1. d4 {[%emt 0:00:00]} Nf6 {[%emt 0:00:00]} 2. Bf4 {[%emt 0:00:00]} e6 {[%emt 0:00:04]} 3. e3 {[%emt 0:00:02]} b6 {[%emt 0:00:04]} 4. Nf3 {[%emt 0:00:07]} Bb7 {[%emt 0:00:04]} 5. Be2 {[%emt 0:00:35]} h6 {[%emt 0:00:23]} 6. h3 {[%emt 0:00:30]} Bd6 {[%emt 0:00:03]} 7. Bxd6 {[%emt 0:00:29]} cxd6 {[%emt 0:00:02]} 8. O-O {[%emt 0:00:09]} d5 {[%emt 0:00:07]} 9. a4 {[%emt 0:00:23]} Nc6 {[%emt 0:00:02]} 10. c3 {[%emt 0:01:30]} O-O {[%emt 0:00:06]} 11. Nbd2 {[%emt 0:00:11]} Ne4 {[%emt 0:00:13]} 12. Nb3 {[%emt 0:01:04]} a5 {[%emt 0:00:54]} 13. Bb5 {[%emt 0:01:17]} f5 {[%emt 0:00:58]} 14. Nc1 {[%emt 0:00:50]} Nd6 {[%emt 0:01:08]} 15. Ne2 {[%emt 0:01:42]} Nxb5 {[%emt 0:01:51]} 16. axb5 {[%emt 0:00:02]} Ne7 {[%emt 0:00:01]} 17. h4 {[%emt 0:01:33]} Qc7 {[%emt 0:02:06]} 18. Nf4 {[%emt 0:00:06]} Kh7 {[%emt 0:01:53]} 19. Ra4 {[%emt 0:00:40]} Rf6 {[%emt 0:00:40]} 20. Qe2 {[%emt 0:00:41]} Ng6 {[%emt 0:00:43]} 21. g3 {[%emt 0:01:45]} Nxf4 {[%emt 0:00:51]} 22. exf4 {[%emt 0:00:00]} d6 {[%emt 0:00:13]} 23. Rfa1 {[%emt 0:00:15]} Bc8 {[%emt 0:00:19]} 24. Qd3 {[%emt 0:01:49]} Bd7 {[%emt 0:00:38]} 25. b4 {[%emt 0:00:05]} Rff8 {[%emt 0:00:24]} 26. Nd2 {[%emt 0:00:09]} Rfc8 {[%emt 0:00:43]} 27. R4a3 {[%emt 0:00:01]} Qd8 {[%emt 0:01:32]} 28. bxa5 {[%emt 0:01:59]} Rxa5 {[%emt 0:00:32]} 29. Rxa5 {[%emt 0:00:03]} bxa5 {[%emt 0:00:00]} 30. Nb1 {[%emt 0:00:08]} Qc7 {[%emt 0:00:23]} 31. Ra2 {[%emt 0:00:43]} Kg8 {[%emt 0:00:34]} 32. Rb2 {[%emt 0:00:03]} Qb6 {[%emt 0:00:35]} 33. Na3 {[%emt 0:00:06]} Qb7 {[%emt 0:00:40]} 34. b6 {[%emt 0:00:42]} a4 {[%emt 0:00:42]} 35. Kh2 {[%emt 0:00:49]} Rc6 {[%emt 0:00:20]} 36. Qb5 {[%emt 0:00:03]} Rxc3 {[%emt 0:00:05]} 37. Qb4 {[%emt 0:00:03]} Rc1 {[%emt 0:00:35]} 38. Qxd6 {[%emt 0:00:06]} Kh7 {[%emt 0:00:27]} 39. Qb4 {[%emt 0:00:31]} Be8 {[%emt 0:00:12]} 40. Rc2 {[%emt 0:00:13]} Rxc2 {[%emt 0:00:14]} 41. Nxc2 {[%emt 0:00:00]} Bc6 {[%emt 0:00:02]} 42. Kg2 {[%emt 0:00:17]} Qa6 {[%emt 0:00:03]} 43. Qd6 {[%emt 0:00:18]} Qxb6 {[%emt 0:00:09]} 44. Qxe6 {[%emt 0:00:02]} Qb7 {[%emt 0:00:09]} 45. Qxf5+ {[%emt 0:00:02]} Kg8 {[%emt 0:00:13]} 46. Qe6+ {[%emt 0:00:02]} Kh8 {[%emt 0:00:05]} 47. f5 {[%emt 0:00:03]} Qd7 {[%emt 0:00:11]} 48. Qe5 {[%emt 0:00:34]} Qf7 {[%emt 0:00:10]} 49. g4 {[%emt 0:00:04]} Kh7 {[%emt 0:00:09]} 50. Kg3 {[%emt 0:00:09]} Bd7 {[%emt 0:00:08]} 51. Kf4 {[%emt 0:00:09]} Kh8 {[%emt 0:00:18]} 52. Qb8+ {[%emt 0:00:11]} Kh7 {[%emt 0:00:02]} 53. Qd6 {[%emt 0:00:02]} Qe8 {[%emt 0:00:08]} 54. f3 {[%emt 0:00:03]} Qe2 {[%emt 0:00:11]} 55. Qg6+ {[%emt 0:00:20]} Kh8 {[%emt 0:00:05]} 56. f6 {[%emt 0:00:01]} Qh2+ {[%emt 0:00:26]} 57. Ke3 {[%emt 0:00:03]} Qg1+ {[%emt 0:00:15]} 58. Kd2 {[%emt 0:00:02]} Qh2+ {[%emt 0:00:01]} 59. Kd3 {[%emt 0:00:34]} Bb5+ {[%emt 0:00:17]} 60. Kc3 {[%emt 0:00:02]} Qc7+ {[%emt 0:00:01]} 61. Kb4 {[%emt 0:00:06]} gxf6 {[%emt 0:00:24]} 62. Qxh6+ {[%emt 0:00:10]} Kg8 {[%emt 0:00:02]} 63. Qg6+ {[%emt 0:00:01]} Kh8 {[%emt 0:00:01]} 64. Qxf6+ {[%emt 0:00:03]} Kh7 {[%emt 0:00:02]} 65. Qf5+ {[%emt 0:00:04]} Kh6 {[%emt 0:00:13]} 66. Qh5+ {[%emt 0:00:27]} Kg7 {[%emt 0:00:02]} 67. Qe5+ {[%emt 0:00:01]} Qxe5 {[%emt 0:00:01]} 68. dxe5 {[%emt 0:00:00]} Be2 {[%emt 0:00:08]} 69. Nd4 {[%emt 0:00:03]} 1-0

[Event "Magnus Carlsen Invitational 2021"]
[Site "Online"]
[Date "2021.03.10"]
[Round "15.4"]
[White "Anton Guijarro, David"]
[Black "Dubov, Daniil"]
[Result "0-1"]
[ECO "A49"]
[WhiteElo "2674"]
[BlackElo "2770"]
[Annotator "ChessBase"]
[PlyCount "113"]
[EventDate "2021.03.13"]
[EventType "tourn"]
[EventCountry "NET"]
[SourceTitle "playchess.com"]
[Source "ChessBase"]
[SourceQuality "1"]
[TimeControl "900+10"]

1. Nf3 {[%emt 0:00:00]} Nf6 {[%emt 0:00:00]} 2. b3 {[%emt 0:00:00]} g6 {[%emt 0:00:00]} 3. Bb2 {[%emt 0:00:00]} Bg7 {[%emt 0:00:01]} 4. g3 {[%emt 0:00:00]} d6 {[%emt 0:00:16]} 5. d4 {[%emt 0:00:00]} c5 {[%emt 0:00:05]} 6. dxc5 {[%emt 0:00:07]} Qa5+ {[%emt 0:00:14]} 7. Nbd2 {[%emt 0:00:45]} Qxc5 {[%emt 0:00:03]} 8. e3 {[%emt 0:00:25]} O-O {[%emt 0:01:18]} 9. c4 {[%emt 0:00:50]} Nc6 {[%emt 0:00:28]} 10. Bg2 {[%emt 0:00:43]} Qh5 {[%emt 0:00:05]} 11. O-O {[%emt 0:01:18]} Bg4 {[%emt 0:00:03]} 12. Qc2 {[%emt 0:01:23]} Rac8 {[%emt 0:00:04]} 13. Nd4 {[%emt 0:00:30]} Nb4 {[%emt 0:01:40]} 14. Qb1 {[%emt 0:00:03]} Bh3 {[%emt 0:00:10]} 15. f3 {[%emt 0:00:38]} a6 {[%emt 0:00:55]} 16. a3 {[%emt 0:00:31]} Nc6 {[%emt 0:00:16]} 17. Qe1 {[%emt 0:00:48]} Bxg2 {[%emt 0:01:06]} 18. Kxg2 {[%emt 0:00:00]} b5 {[%emt 0:00:19]} 19. g4 {[%emt 0:00:55]} Qc5 {[%emt 0:00:11]} 20. b4 {[%emt 0:01:45]} Qb6 {[%emt 0:00:07]} 21. Rc1 {[%emt 0:00:17]} Ne5 {[%emt 0:00:45]} 22. Qe2 {[%emt 0:00:01]} bxc4 {[%emt 0:00:29]} 23. Nxc4 {[%emt 0:00:01]} Nxc4 {[%emt 0:00:12]} 24. Rxc4 {[%emt 0:00:00]} Nd5 {[%emt 0:03:17]} 25. Rfc1 {[%emt 0:01:15]} Rxc4 {[%emt 0:00:02]} 26. Rxc4 {[%emt 0:00:01]} e5 {[%emt 0:00:08]} 27. Nc2 {[%emt 0:00:07]} Qb5 {[%emt 0:00:22]} 28. Kf2 {[%emt 0:01:00]} Bf6 {[%emt 0:00:12]} 29. Bc1 {[%emt 0:00:51]} e4 {[%emt 0:01:32]} 30. Nd4 {[%emt 0:01:50]} Bh4+ {[%emt 0:00:03]} 31. Kf1 {[%emt 0:00:17]} exf3 {[%emt 0:00:12]} 32. Nxf3 {[%emt 0:00:05]} Bf6 {[%emt 0:00:05]} 33. Rc2 {[%emt 0:00:23]} Qa4 {[%emt 0:00:41]} 34. Qd3 {[%emt 0:00:20]} Re8 {[%emt 0:00:24]} 35. Kf2 {[%emt 0:00:24]} Bg7 {[%emt 0:00:14]} 36. g5 {[%emt 0:00:21]} Nb6 {[%emt 0:01:13]} 37. e4 {[%emt 0:00:40]} d5 {[%emt 0:00:30]} 38. exd5 {[%emt 0:00:04]} Nxd5 {[%emt 0:00:07]} 39. Re2 {[%emt 0:00:20]} Rd8 {[%emt 0:00:08]} 40. Bb2 {[%emt 0:00:15]} Bxb2 {[%emt 0:00:51]} 41. Rxb2 {[%emt 0:00:00]} Rd6 {[%emt 0:00:04]} 42. Re2 {[%emt 0:00:47]} Qd7 {[%emt 0:00:05]} 43. Qe4 {[%emt 0:00:09]} Qa7+ {[%emt 0:00:49]} 44. Qd4 {[%emt 0:00:46]} Qxd4+ {[%emt 0:00:28]} 45. Nxd4 {[%emt 0:00:00]} Nxb4 {[%emt 0:00:07]} 46. axb4 {[%emt 0:00:45]} Rxd4 {[%emt 0:00:01]} 47. Ra2 {[%emt 0:00:00]} Rd6 {[%emt 0:00:50]} 48. Kg3 {[%emt 0:00:21]} Kg7 {[%emt 0:00:16]} 49. h4 {[%emt 0:00:16]} h6 {[%emt 0:00:15]} 50. Rc2 {[%emt 0:00:25]} Rd3+ {[%emt 0:00:32]} 51. Kf2 {[%emt 0:00:26]} hxg5 {[%emt 0:00:21]} 52. hxg5 {[%emt 0:00:01]} Rd5 {[%emt 0:00:00]} 53. Rc5 {[%emt 0:00:16]} Rxc5 {[%emt 0:00:16]} 54. bxc5 {[%emt 0:00:00]} Kf8 {[%emt 0:00:02]} 55. Ke3 {[%emt 0:00:05]} Ke7 {[%emt 0:00:02]} 56. Ke4 {[%emt 0:00:17]} a5 {[%emt 0:00:44]} 57. Kd5 {[%emt 0:00:03]} 0-1